Cogmind - Beta 13 @@@ ROGUE MODE // 2024.03.31 @ 20:56:36 Player: SLUGGY Result: Destroyed by G-34 Mercenary with Small Laser Performance ------------- Evolutions (0) 0 Regions Visited (1) 200 Robots Destroyed (10) 50 Value Destroyed (196) 196 Prototype IDs (0) 0 Alien Tech Used (0) 0 Bonus (0) 0 TOTAL SCORE: 446 Bonus ------- None Cogmind --------- Core Integrity 0/250 Matter 274/300 Energy 119/125 System Corruption 0% Temperature Cool (12) Movement Rolling (90) Location -10/Materials Parts ------- > --- POWER (1) -------- Light Ion Engine > --- PROPULSION (2) --- Wheel Compact Wheel > --- UTILITY (2) ------ Machine Analyzer Targeting Computer > --- WEAPON (2) ------- Small Laser Small Laser > --- INVENTORY (5) ---- Small Storage Unit Peak State ------------ > --- POWER ------------ Light Ion Engine > --- PROPULSION ------- Wheel Compact Wheel > --- UTILITY ---------- Small Storage Unit Machine Analyzer > --- WEAPON ----------- Small Laser Small Laser > --- INVENTORY -------- (None) [Rating: 9] Favorites ----------- Power Ion Engine Engine Ion Engine Propulsion Aluminum Leg Leg Aluminum Leg Wheel Wheel Utility ECM Suite Device ECM Suite Storage Small Storage Unit Processor Machine Analyzer Protection Light Armor Plating Weapon Light Assault Rifle Energy Gun Small Laser Ballistic Gun Light Assault Rifle Build | -11 -10 ------- Run | Yrd Mat Slots Evolved . | . . Power . | . . Propulsion . | . . Utility . | . . Weapon . | . . Parts Attached 20 | 6 14 Power 3 | 1 2 Engine 3 | 1 2 Core . | . . Reactor . | . . Propulsion 6 | 2 4 Treads . | . . Leg 2 | 2 . Wheel 4 | . 4 Hover . | . . Flight . | . . Utility 7 | 1 6 Device 1 | . 1 Storage 3 | 1 2 Processor 2 | . 2 Hackware . | . . Protection 1 | . 1 Artifact . | . . Weapon 4 | 2 2 Energy Gun 3 | 1 2 Energy Cannon . | . . Ballistic Gun 1 | 1 . Ballistic Cannon . | . . Launcher . | . . Special Weapon . | . . Impact Weapon . | . . Slashing Weapon . | . . Piercing Weapon . | . . Special Melee Weapon . | . . Unidentified Prototypes . | . . Parts Lost 10 | . 10 Power 2 | . 2 Propulsion 4 | . 4 Utility 2 | . 2 Weapon 2 | . 2 Highest Loss Streak 6 | . 6 To Critical Strikes . | . . Average Slot Usage (%) 83 | . 83 Engine 12 | . 12 Leg 12 | . 12 Wheel 5 | . 5 Device 9 | . 9 Storage 5 | . 5 Processor 6 | . 6 Protection 3 | . 3 Energy Gun 15 | . 15 Ballistic Gun 10 | . 10 Naked Turns . | . . Heaviest Build 15 | 13 15 Greatest Support 26 | 20 26 Greatest Overweight (x) 4 | . 4 Average Overweight (x) . | . . Largest Inventory Capacity 8 | 8 8 Average Capacity 6 | 6 6 Most Carried 5 | 5 4 Average Carried . | 1 . Final Capacity 8 | 8 5 Final Carried 1 | . 1 Class Distribution -------------------- 91% | Mutant 8% | Scavenger-Mutant Dominant Class ---------------- Mutant | -10/Materials Resources | -11 -10 ----------- Run | Yrd Mat Matter Collected 363 | 96 267 Remotely . | . . Salvage Created 251 | . 251 Parts 13 | . 13 Haulers Intercepted . | . . Recyclers Shooed . | . . Parts Field Recycled . | . . Retrieved Matter . | . . Parts Self-Destructed . | . . Prevented . | . . Kills | -11 -10 ------- Run | Yrd Mat Combat Hostiles Destroyed 4 | . 4 Guns 3 | . 3 Classes Destroyed 4 | . 4 Worker 1 | . 1 Builder 4 | . 4 Mechanic 1 | . 1 Grunt 4 | . 4 Best Kill Streak 5 | . 5 Combat Bots Only 1 | . 1 Max Kills in Single Turn 1 | . 1 Gunslinging . | . . Exploded . | . . Melee . | . . Uniques/NPCs Destroyed . | . . Combat | -11 -10 -------- Run | Yrd Mat Hostile Shots Fired 79 | . 79 Missed 15 | . 15 Damage Taken 940 | . 940 Core 250 | . 250 Absorbed by Shields . | . . Core Remaining (%) 100 | 100 . Volleys Fired 53 | . 53 Largest 2 | . 2 Hottest 80 | . 80 Shots Fired 86 | . 86 Gun 86 | . 86 Cannon . | . . Launcher . | . . Special . | . . Kinetic 39 | . 39 Thermal 40 | . 40 Explosive . | . . Electromagnetic 7 | . 7 Robot Hit Streak 9 | . 9 Robot Miss Streak 4 | . 4 Penetration Max . | . . Secondary Targets . | . . Shots Hit Robots 57 | . 57 Core Hits 21 | . 21 Critical Kills . | . . Critical Parts Destroyed . | . . Critical Strikes . | . . Melee Attacks . | . . Impact . | . . Slashing . | . . Piercing . | . . Sneak Attacks . | . . Combat Hostiles . | . . Follow-up Attacks . | . . Damage Inflicted 578 | . 578 Guns 578 | . 578 Cannons . | . . Explosions . | . . Melee . | . . Ramming . | . . Kinetic 199 | . 199 Thermal 329 | . 329 Explosive . | . . Electromagnetic 50 | . 50 Impact . | . . Slashing . | . . Piercing . | . . Highest Corruption . | . . Average Corruption . | . . Corruption Purged . | . . Corruption Blocked . | . . Overload Shots . | . . Overflow Damage . | . . Projectiles . | . . Explosions . | . . Melee . | . . Knockbacks . | . . Impact . | . . Kinetic . | . . Secondary . | . . Self-Inflicted Damage . | . . Shots . | . . Rammed . | . . Targets Rammed . | . . Kicked . | . . Crushed . | . . Highest Temperature 219 | . 219 Average Temperature 93 | . 93 Received Heat Transfer 465 | . 465 Siege Activations . | . . Robots Corrupted . | . . Combat Hostiles . | . . Parts Fried . | . . Impact Corruptions . | . . Robots Melted 1 | . 1 Combat Hostiles 1 | . 1 Parts Melted 1 | . 1 Heat Transferred 750 | . 750 Parts Sabotaged . | . . Parts Stolen . | . . Parts Stripped . | . . Power Chain Reactions . | . . Alert | -11 -10 ------- Run | Yrd Mat Peak Influence 80 | . 80 Initial . | . . Average 22 | . 24 Maximum Alert Level . | . . Low Security (%) 100 | 100 100 Level 1 . | . . Level 2 . | . . Level 3 . | . . Level 4 . | . . Level 5 . | . . High Security . | . . Max Security . | . . Squads Dispatched 1 | . 1 Investigation . | . . Extermination . | . . Reinforcement 1 | . 1 Assault . | . . Garrison . | . . Intercept . | . . Searches Triggered . | . . Construction Impeded . | . . Haulers Reinforced . | . . Active Scanning Responses . | . . Cargo Convoy Interrupts . | . . Stealth | -11 -10 --------- Run | Yrd Mat Distress Signals 2 | . 2 Communications Jammed . | . . Distress Signals . | . . Times Spotted 11 | . 11 Peak Tracking Total 4 | . 4 Tactical Retreats . | . . Traps | -11 -10 ------- Run | Yrd Mat Traps Triggered . | . . Indirectly . | . . Trap Hack Attempts . | . . Triggered . | . . Disarmed . | . . Reprogrammed . | . . Reused . | . . Traps Extracted . | . . Installed . | . . Triggered . | . . Machines | -11 -10 ---------- Run | Yrd Mat Machines Disabled . | . . Max in Single Turn . | . . Machines Repaired . | . . Machines Dismantled . | . . Machines Sabotaged . | . . Overloaded Fab Kills . | . . Hacking | -11 -10 --------- Run | Yrd Mat Machines Accessed . | . . Terminals . | . . Fabricators . | . . Repair Stations . | . . Recycling Units . | . . Scanalyzers . | . . Garrison Access . | . . Total Hacks . | . . Successful . | . . Failed . | . . Catastrophic . | . . Database Lockouts . | . . Manual . | . . Terminals . | . . Fabricators . | . . Repair Stations . | . . Recycling Units . | . . Scanalyzers . | . . Garrison Access . | . . Terminal Hacks . | . . Fabricator Hacks . | . . Repair Station Hacks . | . . Recycling Unit Hacks . | . . Scanalyzer . | . . Garrison Access Hacks . | . . Unauthorized Hacks . | . . Terminals . | . . Fabricators . | . . Repair Stations . | . . Recycling Units . | . . Scanalyzers . | . . Garrison Access . | . . Data Cores Recovered . | . . Used . | . . Hacking Detections . | . . Full Trace Events . | . . Feedback Events . | . . Feedback Blocked . | . . Robot Schematics Acquired . | . . Robots Built . | . . Authchips . | . . Time . | . . Total Robot Build Rating . | . . Part Schematics Acquired . | . . Parts Built . | . . Authchips . | . . Time . | . . Total Part Build Rating . | . . Parts Repaired . | . . Time . | . . Parts Recycled . | . . Recycled Matter . | . . Retrieved Matter . | . . Retrieved Components . | . . Parts Scanalyzed . | . . Part Schematics Acquired . | . . Parts Damaged . | . . Bothacking | -11 -10 ------------ Run | Yrd Mat Used RIF Installer . | . . Robots Hacked . | . . Non-combat . | . . Combat . | . . Robot Hacks Applied . | . . Relay Couplers Released . | . . Fabnet Peak Effective % . | . . Robots Rewired . | . . Allies Hacked . | . . Hacks Repelled . | . . Allies | -11 -10 -------- Run | Yrd Mat Total Allies . | . . Largest Group . | . . Highest-Rated Group . | . . Highest-Rated Ally . | . . Total Orders . | . . Ally Attacks . | . . Total Damage . | . . Kills . | . . Allies Corrupted . | . . Allies Melted . | . . Intel | -11 -10 ------- Run | Yrd Mat Robot Analysis Total . | . . Derelict Logs Recovered . | . . Drone Launches . | . . Drone Recoveries . | . . Exploration | -11 -10 ------------- Run | Yrd Mat Turns Passed 390 | 33 357 Spaces Moved 184 | 24 160 Core 37 | 11 26 Treads . | . . Legs 111 | 13 98 Wheels 36 | . 36 Hover . | . . Flight . | . . Fastest Speed 50 | 50 50 Average Speed 119 | 87 124 Slowest Speed 250 | 120 250 Overloaded Moves . | . . Propulsion Burnouts . | . . Robots Hopped . | . . Cave-ins Triggered . | . . Exploration Rate (%) 21 | 3 40 Regions Visited 1 Branch Regions . Pre-discovered Areas . | . . Known Exits Taken . | . . Unknown Exits Taken 1 | 1 . Scrap Searched . | . . Spaces Dug . | . . Terrain Destroyed . | . . Melee . | . . Projectile . | . . AOE . | . . Terrain Rammed . | . . Walls Destroyed . | . . Machines Disabled . | . . Actions | -11 -10 --------- Run | Yrd Mat Total 279 | 35 244 Wait 1 | 1 . Move 183 | 23 160 Hop . | . . Pick Up 18 | 5 13 Fast Attach 1 | 1 . Attach 19 | 5 14 Detach 3 | . 3 Swap . | . . Drop 1 | . 1 Fire 53 | . 53 Melee . | . . Ram . | . . Kick . | . . Crush . | . . Escape Stasis . | . . Rewire . | . . Trap . | . . Miscellaneous . | . . Route ------- -11/Scrapyard -10/Materials (discovered 1 exit: [*Min]) History --------- Turn | Location | Event 10 | -11/Scrapyard | Discovered new exit (range 15) 34 | -11/Scrapyard | Entered Materials 148 | -10/Materials | Discovered new exit (range 14) 237 | -10/Materials | Lost 4 parts (2n1u1w) 283 | -10/Materials | Core integrity fell below 50% 300 | -10/Materials | Build established: Mutant 316 | -10/Materials | Core integrity fell below 20% 360 | -10/Materials | Lost 6 parts (2p2n1u1w) 391 | -10/Materials | Destroyed by G-34 Mercenary with Small Laser Last Messages --------------- 00339_ K-01 Serf collects debris. 00341_ Acquired 11 matter. 00342_ K-01 Serf collects debris. 00347_ Acquired Wheel. 00349_ K-01 Serf collects debris. 00349_ K-01 Serf cleans the Machine. 00352_ Acquired Com. Wheel. 00356_ K-01 Serf collects debris. 00357_ Acquired 13 matter. 00357_ K-01 Serf cleans the Machine. 00365_ >> Machine Analyzer network decryption results: 00365_ Terminal x4 00366_ K-01 Serf cleans the Nuclear Reactor. 00370_ Acquired Targeting Computer. 00372_ W-16 Scout sends out distress signal. 00373_ >> Machine Analyzer network decryption results: 00373_ Terminal x1 00373_ K-01 Serf cleans the Machine. 00374_ K-01 Serf cleans the Nuclear Reactor. 00382_ K-01 Serf cleans the Machine. Map ----- +----------------------------------------------------+ | ??????"""?"""??T"????????????????????"""??"T"????? | | ??????"""?"""??""????????????????????"""?????????? | | ??????"""?"""????????????????????????"""?????????? | | ?????????????????????????????????????????????????? | | ?????????????????????????????????????????????????? | | ?????????????????????????????????????????????????? | | ?????????????????????????????????????????????????? | | ?????????????????????????????????????????????????? | | ?????????????????????????????????????????????????? | | ??????????????????????????????!??????????????????? | | ?????????????????????????????? ??????????????????? | | ????????????????????????????##+#??##### ????????? | | ????????????????????????????# """ ???????? | | ????????????????????????????# "T" ??????? | | ???????????"""?"""?"""??????+ !!! ??????? | | ???????????"""?"""?"""??????# !!! ??????? | | ???????????"""?"""?"""??????# !! ???????? | | ????????????????????????????# ????????? | | ????????????????????????????# ?? #????? | | ??????????????##????????????# """ #????? | | ??????????????? ??????????# w """ #?"""" | | ?????????????? ########## """ #?"""" | | ?????????????? T o a #?"""" | | ?????????????# g !! +????? | | ??????????????? wg ! #????? | | ??????????????????????###@ k! #????? | | ????????????????????????# ######## ###????? | | ???????"""""????????????# #???????????????? | | ???????"""""????????????# k #???????????????? | | ???????"""""????????????# k #???????????????? | | ???????"""""??????# ????# ## ####????????????? | | ???????"""""??????# ???# # "#????????????? | | ???????"""""??? ? ??# # ""#????????????? | | ???????"""""??# ?? ?# # !!#????????????? | | ??????????????# ??? # # < ""#????????????? | | ??????????????# + ?? # # !!#????????????? | | ??????????????# # ?? + # ""#????????????? | | ??????????????# # ??# # "#????????????? | | ??????????????# # ?# ## ####????????????? | | ??????????????# # # |%% ##########??????? | | ???????"??????# # # % ! ! "" ????? | | ???????T??????# ####### * ! ! Y" !##+#???????? | | ???????"??????# #????# % ! #?????? ?? | | ??????????????# #????# #?????# #? | | ??????????????# #????#" #?"""?# +? | | ??#####+####### #????## + """?# #? | | ? ####### %! # """?# #? | | ? #?????# #? | | ? ########+######## #?????# #? | | ????########### #??# #??? #?##### #? | +----------------------------------------------------+ Best States ------------- Heat Dissipation 25 Energy Generation 10 Energy Capacity 250 Matter Stores 291 Matter Capacity 300 Sight Range 16 Terrain Scan Density 10 ECM Strength 1 Armor Coverage 150 Evasion (%) 55 Targeting Accuracy 5 Item Schematics ----------------- None Robot Schematics ------------------ None Fabricated ------------ Nothing Alien Tech Used ----------------- None Achievements -------------- None Challenges ------------ None Game ------ Seed MicroGuidedExtractor Manual? 0 Play Time 00:05:34 Cumulative 6.1 hours Start 2024.03.31 @ 20:51:26 End 2024.03.31 @ 20:56:36 Sessions 1 Manual Loads 0 Difficulty Rogue Special Mode None Game No. 14 Rogue 14 Adventurer 0 Explorer 0 Win Type - Total 0 Types 0/0/0/0/0/0/0/0/0 Lore% 1 Gallery% 11 Achievement% 11 Wizard Run 0 Options --------- Layout 0 ASCII 0 Keyboard 0 Movement Mouse Keybinds 0 Fullscreen 1 Font 24/Smallcaps Map View 76x50 Zoom Use 0% Tactical HUD 1 Map Filters NONE Filters NONE Steam 1 RUN: de2a9f39-d1a5-4e6c-863e-07119b1194a1